fUST/lending_fUST_20251121
["ID","MTS","AMOUNT","RATE_DAILY","PERIOD"]
[394554235,1763700333783,863.0,0.00032414,120]
[394554254,1763700387725,500.0,0.00032,120]
[394554256,1763700394597,1318.391722,0.00030137,120]
[394554268,1763700404281,-223.02823501,7.272e-05,2]
[394554271,1763700405755,150.0,8.102e-05,30]
[394554272,1763700406154,150.0,8.3e-05,30]
[394554273,1763700406564,150.0,8.497e-05,30]
[394554274,1763700407005,150.0,8.695e-05,30]
[394554275,1763700407409,150.0,8.893e-05,30]
[394554276,1763700407812,150.0,9.09e-05,30]
[394554277,1763700408219,164.47,9.288e-05,30]
[394554279,1763700427095,-39.58556056,7.272e-05,2]
[394554280,1763700427116,-267.66321398,7.309e-05,2]
[394554281,1763700427136,-262.61379557,7.345e-05,2]
[394554282,1763700427163,-262.61379557,7.419e-05,2]
[394554283,1763700427183,-185.06692353,7.593e-05,2]
[394554284,1763700427203,-309.228,7.593e-05,2]
[394554285,1763700427228,-300.0,7.647e-05,2]
[394554286,1763700427252,-119.22091092,7.648e-05,2]
[394554287,1763700446080,-500.0,7.471e-05,2]
[394554288,1763700446101,-500.0,7.546e-05,2]
[394554289,1763700446121,-500.0,7.623e-05,2]
[394554290,1763700446142,-500.0,7.623e-05,2]
[394554291,1763700446168,-10161.44719988,7.648e-05,2]
[394554300,1763700472402,1913.19971778,0.00032876,120]
[394554302,1763700482026,150.0,0.00011284,30]
[394554304,1763700482468,150.0,0.00011559,30]
[394554305,1763700482873,150.0,0.00011835,30]
[394554309,1763700483287,150.0,0.0001211,30]
[394554310,1763700483685,150.0,0.00012385,30]
[394554313,1763700489761,1810.0,0.000328,120]
[394554315,1763700538815,906.4778728,0.00030137,120]
[394554316,1763700557653,150.0,0.00010865,30]
[394554317,1763700558055,150.0,0.0001113,30]
[394554318,1763700558456,150.0,0.00011394,30]
[394554338,1763700632699,-300.0,7.418e-05,2]
[394554340,1763700632709,-300.0,7.418e-05,2]
[394554342,1763700632718,-300.0,7.418e-05,2]
[394554344,1763700632728,-300.0,7.418e-05,2]
[394554346,1763700632738,-1200.0,7.418e-05,2]
[394554348,1763700632747,-1048.6683908,7.42e-05,2]
[394554410,1763700640149,-3e-08,7.344e-05,2]
[394554553,1763700673114,1733.83141038,0.000249,120]
[394554703,1763700763194,588.0,0.0002191,120]
[394554704,1763700763724,588.0,0.000219,120]
[394554705,1763700764211,588.0,0.0002189,120]
[394554706,1763700764734,588.0,0.0002419,120]
[394554707,1763700765570,588.0,0.0002418,120]
[394554708,1763700765743,588.0,0.0002417,120]
[394554821,1763701212003,-284.28149896,6.709e-05,2]
[394554839,1763701424573,335.65239906,0.00023119,65]
[394554840,1763701425191,335.65239906,0.00023165,69]
[394554841,1763701425574,335.65239906,0.00023212,72]
[394554842,1763701426021,335.65239906,0.00023259,76]
[394554843,1763701426440,335.65239906,0.00023305,80]
[394554844,1763701426837,335.65239906,0.00023352,83]
[394554845,1763701427243,335.65239906,0.00023399,87]
[394554846,1763701427615,335.65239906,0.00023445,91]
[394554847,1763701427997,335.65239906,0.00023492,95]
[394554848,1763701428386,335.65239906,0.00023539,98]
[394554849,1763701428809,335.65239906,0.00023585,102]
[394554850,1763701429195,335.65239906,0.00023632,106]
[394554852,1763701484356,235.0,0.0002191,120]
[394554853,1763701485056,235.0,0.000219,120]
[394554854,1763701485262,235.0,0.0002189,120]
[394554855,1763701486100,235.0,0.0002409,120]
[394554856,1763701486731,235.0,0.0002408,120]
[394554857,1763701487243,235.0,0.0002407,120]
[394554859,1763701566370,180.0,0.000219,120]
[394554860,1763701568752,185.25257212,0.000219,120]
[394554864,1763701649109,-3494.40261429,6.191e-05,2]
[394554865,1763701649133,-3494.40261429,6.254e-05,2]
[394554866,1763701649152,-300.0,6.316e-05,2]
[394554867,1763701649173,-832.57762575,6.317e-05,2]
[394554868,1763701653080,-313.09592286,6.129e-05,2]
[394554870,1763701734598,1000.0,0.00025278,120]
[394554939,1763701832329,-1946.20518151,6.007e-05,2]
[394555032,1763701838023,-1235.10150992,6.007e-05,2]
[394555034,1763701838032,-3181.30669143,6.068e-05,2]
[394555036,1763701838042,-271.65818173,6.099e-05,2]
[394555038,1763701838052,-300.0,6.127e-05,2]
[394555040,1763701838062,-1200.0,6.127e-05,2]
[394555042,1763701838071,-3181.30669143,6.129e-05,2]
[394555043,1763701838081,-1200.0,6.442e-05,2]
[394555044,1763701838090,-1680.0,6.74e-05,2]
[394555045,1763701838099,-1158.52513009,6.982e-05,2]
[394555046,1763701838110,-576.95799365,7.051e-05,2]
[394555047,1763701838120,-247.382,7.051e-05,2]
[394555048,1763701838129,-1158.52513009,7.124e-05,2]
[394555049,1763701838139,-1158.52513009,7.266e-05,2]
[394555051,1763701838148,-1158.52513009,7.408e-05,2]
[394555052,1763701838158,-483.0,7.414e-05,2]
[394555053,1763701838167,-1158.52513009,7.55e-05,2]
[394555054,1763701838177,-500.0,7.559e-05,2]
[394555055,1763701838186,-295.58131788,7.559e-05,2]
[394555056,1763701838196,-1158.52513009,7.692e-05,2]
[394555057,1763701838206,-2666.60315895,7.772e-05,2]
[394555058,1763701838216,-422.90995619,7.792e-05,2]
[394555059,1763701838225,-500.0,7.833e-05,2]
[394555060,1763701838235,-1158.52513009,7.835e-05,2]
[394555061,1763701838245,-2461.96078839,7.844e-05,2]
[394555062,1763701838255,-574.12855637,7.844e-05,2]
[394555063,1763701838265,-151.0,7.844e-05,2]
[394555064,1763701838275,-2000.0,7.844e-05,2]
[394555065,1763701838285,-250.0,7.844e-05,2]
[394555066,1763701838294,-250.0,7.844e-05,2]
[394555067,1763701838304,-151.0,7.844e-05,2]
[394555068,1763701838314,-500.0,7.844e-05,2]
[394555069,1763701838324,-2000.0,7.844e-05,2]
[394555070,1763701838334,-250.0,7.844e-05,2]
[394555071,1763701838343,-250.0,7.844e-05,2]
[394555072,1763701838352,-151.0,7.844e-05,2]
[394555073,1763701838361,-500.0,7.844e-05,2]
[394555074,1763701838371,-2000.0,7.844e-05,2]
[394555075,1763701838380,-250.0,7.844e-05,2]
[394555076,1763701838389,-250.0,7.844e-05,2]
[394555077,1763701838399,-151.0,7.844e-05,2]
[394555078,1763701838408,-500.0,7.844e-05,2]
[394555079,1763701838418,-1881.85333829,7.844e-05,2]
[394555080,1763701838427,-250.0,7.844e-05,2]
[394555081,1763701838437,-250.0,7.844e-05,2]
[394555082,1763701838446,-151.0,7.844e-05,2]
[394555083,1763701838456,-500.0,7.844e-05,2]
[394555084,1763701838466,-209.40437684,7.844e-05,2]
[394555085,1763701838476,-250.0,7.844e-05,2]
[394555086,1763701838486,-320.3894417,7.844e-05,2]
[394555087,1763701838495,-151.0,7.844e-05,2]
[394555088,1763701838505,-151.0,7.844e-05,2]
[394555089,1763701838515,-500.0,7.844e-05,2]
[394555090,1763701838525,-250.0,7.844e-05,2]
[394555091,1763701838534,-151.0,7.844e-05,2]
[394555092,1763701838544,-250.0,7.844e-05,2]
[394555093,1763701838553,-151.0,7.844e-05,2]
[394555094,1763701838563,-500.0,7.844e-05,2]
[394555095,1763701838573,-250.0,7.844e-05,2]
[394555096,1763701838582,-151.0,7.844e-05,2]
[394555097,1763701838592,-250.0,7.844e-05,2]
[394555098,1763701838601,-151.0,7.844e-05,2]
[394555099,1763701838611,-500.0,7.844e-05,2]
[394555100,1763701838621,-151.0,7.844e-05,2]
[394555101,1763701838631,-250.0,7.844e-05,2]
[394555102,1763701838640,-250.0,7.844e-05,2]
[394555103,1763701838655,-151.0,7.844e-05,2]
[394555104,1763701838665,-500.0,7.844e-05,2]
[394555105,1763701838678,-151.0,7.844e-05,2]
[394555106,1763701838687,-250.0,7.844e-05,2]
[394555107,1763701838699,-250.0,7.844e-05,2]
[394555108,1763701838708,-250.0,7.844e-05,2]
[394555109,1763701838717,-151.0,7.844e-05,2]
[394555110,1763701838727,-500.0,7.844e-05,2]
[394555111,1763701838736,-151.0,7.844e-05,2]
[394555112,1763701838745,-250.0,7.844e-05,2]
[394555113,1763701838755,-151.0,7.844e-05,2]
[394555114,1763701838764,-250.0,7.844e-05,2]
[394555115,1763701838774,-500.0,7.844e-05,2]
[394555116,1763701838783,-250.0,7.844e-05,2]
[394555117,1763701838794,-151.0,7.844e-05,2]
[394555118,1763701838803,-250.0,7.844e-05,2]
[394555119,1763701838812,-500.0,7.844e-05,2]
[394555120,1763701838822,-250.0,7.844e-05,2]
[394555121,1763701838832,-151.0,7.844e-05,2]
[394555122,1763701838841,-151.0,7.844e-05,2]
[394555123,1763701838851,-250.0,7.844e-05,2]
[394555124,1763701838861,-151.0,7.844e-05,2]
[394555125,1763701838871,-250.0,7.844e-05,2]
[394555126,1763701838880,-151.0,7.844e-05,2]
[394555127,1763701838890,-250.0,7.844e-05,2]
[394555128,1763701838899,-250.0,7.844e-05,2]
[394555129,1763701838910,-151.0,7.844e-05,2]
[394555130,1763701838920,-151.0,7.844e-05,2]
[394555131,1763701838930,-305.82992185,7.844e-05,2]
[394555132,1763701838939,-250.0,7.844e-05,2]
[394555133,1763701838949,-151.0,7.844e-05,2]
[394555134,1763701838959,-259.13161761,7.844e-05,2]
[394555135,1763701838969,-250.0,7.844e-05,2]
[394555136,1763701838978,-151.0,7.844e-05,2]
[394555137,1763701838988,-250.0,7.844e-05,2]
[394555138,1763701838998,-3114.56520751,7.844e-05,2]
[394555139,1763701839008,-250.0,7.844e-05,2]
[394555140,1763701839018,-250.0,7.844e-05,2]
[394555141,1763701839028,-250.0,7.844e-05,2]
[394555142,1763701839039,-250.0,7.844e-05,2]
[394555143,1763701839053,-160.0,7.844e-05,2]
[394555144,1763701839063,-160.0,7.844e-05,2]
[394555145,1763701839073,-160.0,7.844e-05,2]
[394555146,1763701839084,-160.0,7.844e-05,2]
[394555147,1763701839095,-160.0,7.844e-05,2]
[394555148,1763701839105,-222.42382077,7.844e-05,2]
[394555149,1763701839114,-250.0,7.844e-05,2]
[394555150,1763701839124,-250.0,7.844e-05,2]
[394555151,1763701839133,-250.0,7.844e-05,2]
[394555152,1763701839143,-250.0,7.844e-05,2]
[394555153,1763701839152,-250.0,7.844e-05,2]
[394555154,1763701839162,-250.0,7.844e-05,2]
[394555155,1763701839172,-250.0,7.844e-05,2]
[394555156,1763701839182,-250.0,7.844e-05,2]
[394555157,1763701839192,-250.0,7.844e-05,2]
[394555158,1763701839202,-151.0,7.844e-05,2]
[394555159,1763701839212,-300.0,7.848e-05,2]
[394555160,1763701839221,-300.0,7.848e-05,2]
[394555161,1763701839231,-300.0,7.848e-05,2]
[394555162,1763701839240,-300.0,7.848e-05,2]
[394555163,1763701839251,-300.0,7.848e-05,2]
[394555164,1763701839260,-300.0,7.848e-05,2]
[394555165,1763701839270,-300.0,7.848e-05,2]
[394555166,1763701839280,-300.0,7.848e-05,2]
[394555167,1763701839291,-300.0,7.848e-05,2]
[394555168,1763701839301,-300.0,7.848e-05,2]
[394555169,1763701839311,-300.0,7.848e-05,2]
[394555170,1763701839320,-300.0,7.848e-05,2]
[394555171,1763701839331,-300.0,7.848e-05,2]
[394555172,1763701839340,-300.0,7.848e-05,2]
[394555173,1763701839350,-300.0,7.848e-05,2]
[394555174,1763701839359,-600.0,7.848e-05,2]
[394555175,1763701839369,-410.27,7.877e-05,2]
[394555176,1763701839378,-824.09122197,7.896e-05,2]
[394555177,1763701839388,-2155.30719125,7.902e-05,2]
[394555178,1763701839398,-1158.52513009,7.977e-05,2]
[394555179,1763701839407,-175.82,7.985e-05,2]
[394555180,1763701839417,-2155.30719125,8.057e-05,2]
[394555181,1763701839427,-320.55665445,8.099e-05,2]
[394555182,1763701839436,-500.0,8.107e-05,2]
[394555183,1763701839445,-1158.52513009,8.119e-05,2]
[394555184,1763701839455,-203.61512917,8.219e-05,2]
[394555185,1763701839464,-151.0,8.219e-05,2]
[394555186,1763701839473,-1159.68365522,8.261e-05,2]
[394555187,1763701839483,-500.0,8.267e-05,2]
[394555188,1763701839493,-464.7630005,8.372e-05,2]
[394555189,1763701839503,-500.0,8.381e-05,2]
[394555190,1763701839512,-595.37131296,8.392e-05,2]
[394555191,1763701839522,-217.15233878,8.392e-05,2]
[394555192,1763701839532,-2155.30719125,8.465e-05,2]
[394555193,1763701839542,-500.0,8.601e-05,2]
[394555194,1763701839552,-151.0,8.627e-05,2]
[394555195,1763701839561,-720.0,8.633e-05,2]
[394555196,1763701839572,-509.41846141,8.655e-05,2]
[394555197,1763701839581,-2155.30719125,8.66e-05,2]
[394555198,1763701839591,-151.452222,8.67e-05,2]
[394555199,1763701839602,-151.0,8.719e-05,2]
[394555200,1763701839611,-1000.0,8.815e-05,2]
[394555201,1763701839621,-2155.30719125,8.857e-05,2]
[394555202,1763701839631,-906.464051,8.9e-05,2]
[394555203,1763701839642,-617.40005154,8.94e-05,2]
[394555204,1763701839656,-225.18697532,8.94e-05,2]
[394555205,1763701839666,-3803.27767464,9e-05,2]
[394555206,1763701839675,-1000.0,9.149e-05,2]
[394555207,1763701839686,-237.18936654,9.166e-05,2]
[394555210,1763701839863,-2155.30719125,9.309e-05,2]
[394555212,1763701839874,-1128.22399568,9.345e-05,2]
[394555241,1763701840201,-1027.08319557,9.345e-05,2]
[394555243,1763701840211,-1500.0,9.363e-05,2]
[394555245,1763701840220,-2151.0,9.371e-05,2]
[394555247,1763701840230,-989.0,9.371e-05,2]
[394555249,1763701840239,-45.41823465,9.371e-05,2]
[394555253,1763701840262,-424.96476535,9.371e-05,2]
[394555255,1763701840271,-351.36798752,9.371e-05,2]
[394555257,1763701840283,-62.63201248,9.371e-05,2]
[394555259,1763701840292,-640.24385345,9.488e-05,2]
[394555261,1763701840302,-233.51889341,9.488e-05,2]
[394555263,1763701840311,-85.78870693,9.496e-05,2]
[394555305,1763701840754,-250.0,7.844e-05,2]
[394555306,1763701840763,-166.35171708,7.844e-05,2]
[394555310,1763701840790,-83.64828292,7.844e-05,2]
[394555312,1763701840800,-416.17593084,9.496e-05,2]
[394555516,1763701846166,-362.03536223,9.401e-05,2]
[394555518,1763701846175,-362.03536223,9.496e-05,2]
[394555520,1763701846184,-151.0,9.693e-05,2]
[394555522,1763701846193,-798.16036996,9.697e-05,2]
[394555524,1763701846203,-2155.30719125,9.846e-05,2]
[394555526,1763701846212,-188.63220464,9.89e-05,2]
[394555528,1763701846222,-339.53796835,9.89e-05,2]
[394555530,1763701846231,-2000.0,9.911e-05,2]
[394555532,1763701846240,-151.0,0.0001,2]
[394555534,1763701846249,-151.0,0.0001,2]
[394555536,1763701846258,-151.0,0.0001,2]
[394555538,1763701846267,-151.0,0.0001,2]
[394555540,1763701846276,-151.0,0.0001,2]
[394555542,1763701846286,-151.0,0.0001,2]
[394555544,1763701846296,-151.0,0.0001,2]
[394555545,1763701846306,-151.0,0.0001,2]
[394555547,1763701846317,-151.0,0.0001,2]
[394555549,1763701846326,-151.0,0.0001,2]
[394555551,1763701846336,-151.0,0.0001,2]
[394555553,1763701846346,-151.0,0.0001,2]
[394555555,1763701846356,-151.0,0.0001,2]
[394555557,1763701846365,-151.0,0.0001,2]
[394555559,1763701846375,-151.0,0.0001,2]
[394555561,1763701846384,-151.0,0.0001,2]
[394555563,1763701846394,-151.0,0.0001,2]
[394555565,1763701846404,-151.0,0.0001,2]
[394555567,1763701846413,-151.0,0.0001,2]
[394555569,1763701846422,-151.0,0.0001,2]
[394555571,1763701846431,-151.0,0.0001,2]
[394555573,1763701846440,-151.0,0.0001,2]
[394555575,1763701846450,-209.40437684,0.0001,2]
[394555577,1763701846459,-663.93287602,0.00010036,2]
[394555579,1763701846468,-242.15909246,0.00010036,2]
[394555581,1763701846478,-369.45512716,0.00010099,2]
[394555583,1763701846487,-1055.34206696,0.0001011,2]
[394555609,1763701980076,2041.27,4.852e-05,2]
[394555610,1763701989154,528.198,0.00025279,120]
[394555611,1763702067437,153.0,0.00025279,120]
[394555612,1763702079975,1012.0004704,0.00025278,120]
[394555613,1763702164899,300.0,0.00025279,120]
[394555614,1763702204292,150.5,0.00021908,120]
[394555615,1763702205091,150.5,0.00021898,120]
[394555616,1763702207158,150.5,0.00021888,120]
[394555617,1763702207730,150.5,0.0002414,120]
[394555618,1763702208168,150.5,0.0002413,120]
[394555619,1763702208604,193.87,0.0002412,120]
[394555620,1763702244351,339.0,0.00024658,120]
[394555622,1763702355827,300.0,0.00025279,120]
[394555623,1763702365018,-6257.07380815,5e-05,2]
[394555624,1763702365130,-1675.08380815,5e-05,2]
[394555625,1763702365157,-6649.8423837,5e-05,2]
[394555626,1763702430022,789.0,0.0002525,120]
[394555627,1763702442767,-2400.0,4.947e-05,2]
[394555628,1763702442796,-2400.0,4.997e-05,2]
[394555629,1763702442863,-400.01,5.047e-05,2]
[394555630,1763702442988,-1999.99,5.047e-05,2]
[394555631,1763702443016,-300.0,5.098e-05,2]
[394555632,1763702443045,-300.0,5.098e-05,2]
[394555633,1763702443074,-300.0,5.098e-05,2]
[394555634,1763702443103,-300.0,5.098e-05,2]
[394555635,1763702443131,-1200.0,5.098e-05,2]
[394555636,1763702443158,-390.51657588,5.098e-05,2]
[394555637,1763702443306,-418.99684824,5.098e-05,2]
[394555638,1763702445924,-81.00315176,5.098e-05,2]
[394555639,1763702445953,-500.0,5.098e-05,2]
[394555640,1763702445986,-500.0,5.098e-05,2]
[394555641,1763702446017,-500.0,5.098e-05,2]
[394555642,1763702446051,-595.67810595,5.098e-05,2]
[394555643,1763702446084,-500.0,5.098e-05,2]
[394555644,1763702446112,-500.0,5.098e-05,2]
[394555645,1763702446145,-500.0,5.098e-05,2]
[394555646,1763702446172,-500.0,5.098e-05,2]
[394555647,1763702446205,-500.0,5.098e-05,2]
[394555648,1763702446235,-146.64748458,5.098e-05,2]
[394555649,1763702446396,-353.35251542,5.098e-05,2]
[394555650,1763702448896,-4111.8424626,5.047e-05,2]
[394555651,1763702448921,-1776.3250748,5.047e-05,2]
[394555652,1763702464032,150.0,0.00011125,30]
[394555653,1763702467694,-4111.8424626,4.997e-05,2]
[394555654,1763702467716,-1776.3250748,4.997e-05,2]
[394555655,1763702467965,-4111.8424626,5.047e-05,2]
[394555656,1763702468002,-1776.3250748,5.047e-05,2]
[394555657,1763702473853,-4111.8424626,5.047e-05,2]
[394555658,1763702473877,-1776.3250748,5.047e-05,2]
[394555659,1763702473951,-500.0,5.098e-05,2]
[394555660,1763702473989,-500.0,5.098e-05,2]
[394555661,1763702474021,-500.0,5.098e-05,2]
[394555662,1763702474057,-500.0,5.098e-05,2]
[394555663,1763702474087,-388.1675374,5.098e-05,2]
[394555664,1763702474128,-500.0,5.098e-05,2]
[394555665,1763702474165,-500.0,5.098e-05,2]
[394555666,1763702474202,-500.0,5.098e-05,2]
[394555667,1763702474238,-500.0,5.098e-05,2]
[394555668,1763702474277,-500.0,5.098e-05,2]
[394555669,1763702474496,-223.6749252,5.098e-05,2]
[394555670,1763702538343,150.0,0.00011127,30]
[394555671,1763702581417,166.735375,6.361e-05,61]
[394555672,1763702581608,166.735375,6.361e-05,120]
[394555673,1763702693702,776.3250748,4.801e-05,2]
[394555674,1763702698197,-776.3250748,4.849e-05,2]
[394555675,1763702708706,776.3250748,4.849e-05,2]
[394555676,1763702716490,776.3250748,4.849e-05,2]
[394555677,1763702731355,776.3250748,4.849e-05,2]
[394555679,1763702739141,776.3250748,4.849e-05,2]
[394555681,1763702754557,776.3250748,4.849e-05,2]
[394555683,1763702762270,776.3250748,4.849e-05,2]
[394555684,1763702777558,776.3250748,4.849e-05,2]
[394555685,1763702785869,776.3250748,4.849e-05,2]
[394555686,1763702801438,776.3250748,4.849e-05,2]
[394555687,1763702809477,776.3250748,4.849e-05,2]
[394555691,1763702824722,684.1091024,4.849e-05,2]
[394555692,1763702824746,92.2159724,4.849e-05,2]
[394555693,1763702832533,776.3250748,4.849e-05,2]
[394555695,1763702844127,-776.3250748,4.898e-05,2]
[394555696,1763702844150,-256.83357765,4.972e-05,2]
[394555697,1763702844171,-300.0,5.094e-05,2]
[394555698,1763702844198,-1200.0,5.095e-05,2]
[394555699,1763702844230,-500.0,5.095e-05,2]
[394555700,1763702844262,-270.04194298,5.095e-05,2]
[394555701,1763702853090,-10588.5737299,5.044e-05,2]
[394555702,1763702906896,804.07005058,0.0002,120]
[394555704,1763702909221,286.59998172,0.00025,120]
[394555707,1763702948091,-271.0,4.943e-05,2]
[394555708,1763702948115,-4781.43640499,4.944e-05,2]
[394555709,1763702968823,-10959.65633183,4.944e-05,2]
[394555710,1763702968844,-1871.05625148,4.994e-05,2]
[394555711,1763702984223,177.77777778,0.00022229,71]
[394555712,1763702984242,177.77777778,0.00022229,71]
[394555713,1763702984815,177.77777778,0.00022322,79]
[394555714,1763702984835,177.77777778,0.00022322,79]
[394555715,1763702985196,177.77777778,0.00022414,86]
[394555716,1763702985217,177.77777778,0.00022414,86]
[394555717,1763702985602,177.77777778,0.00022507,94]
[394555718,1763702985624,177.77777778,0.00022507,94]
[394555719,1763702986092,177.77777778,0.00022599,102]
[394555720,1763702986113,177.77777778,0.00022599,102]
[394555721,1763702986134,47.22732331,0.00022599,102]
[394555722,1763702986484,402.78287887,0.00022692,110]
[394555723,1763702988673,5000.0,0.0001,3]
[394555725,1763703010505,5000.0,0.0001,3]
[394555731,1763703028904,166.0,0.00023471,120]
[394555765,1763703032287,5000.0,0.0001,3]
[394555766,1763703032522,-316.24027725,4.994e-05,2]
[394555767,1763703032536,-708.02923581,4.994e-05,2]
[394555771,1763703038356,-12845.76697228,4.994e-05,2]
[394555772,1763703038371,-251.69690609,5.019e-05,2]
[394555773,1763703038384,-5152.51900692,5.044e-05,2]
[394555774,1763703038405,-229.95805702,5.095e-05,2]
[394555775,1763703038418,-500.0,5.095e-05,2]
[394555776,1763703038434,-500.0,5.095e-05,2]
[394555777,1763703038448,-500.0,5.095e-05,2]
[394555778,1763703038467,-500.0,5.095e-05,2]
[394555779,1763703038481,-500.0,5.095e-05,2]
[394555780,1763703038495,-500.0,5.095e-05,2]
[394555781,1763703038509,-500.0,5.095e-05,2]
[394555782,1763703038522,-500.0,5.095e-05,2]
[394555783,1763703038536,-408.26037791,5.095e-05,2]
[394555785,1763703038550,-500.0,5.095e-05,2]
[394555787,1763703038564,-500.0,5.095e-05,2]
[394555788,1763703038577,-500.0,5.095e-05,2]
[394555789,1763703038591,-500.0,5.095e-05,2]
[394555790,1763703038604,-500.0,5.095e-05,2]
[394555791,1763703038618,-500.0,5.095e-05,2]
[394555792,1763703038633,-500.0,5.095e-05,2]
[394555793,1763703038647,-500.0,5.095e-05,2]
[394555794,1763703038660,-500.0,5.095e-05,2]
[394555795,1763703038674,-192.13344707,5.095e-05,2]
[394555796,1763703038689,-500.0,5.095e-05,2]
[394555797,1763703038704,-500.0,5.095e-05,2]
[394555798,1763703038718,-500.0,5.095e-05,2]
[394555799,1763703038732,-500.0,5.095e-05,2]
[394555800,1763703038747,-500.0,5.095e-05,2]
[394555801,1763703038761,-410.74085482,5.095e-05,2]
[394555802,1763703038776,-500.0,5.095e-05,2]
[394555803,1763703038790,-500.0,5.095e-05,2]
[394555804,1763703038803,-500.0,5.095e-05,2]
[394555805,1763703038817,-500.0,5.095e-05,2]
[394555806,1763703038832,-500.0,5.095e-05,2]
[394555807,1763703038847,-500.0,5.095e-05,2]
[394555808,1763703038862,-500.0,5.095e-05,2]
[394555809,1763703038877,-151.0,5.098e-05,2]
[394555810,1763703038891,-151.0,5.098e-05,2]
[394555811,1763703038906,-151.0,5.098e-05,2]
[394555812,1763703038921,-151.0,5.098e-05,2]
[394555813,1763703038935,-151.0,5.098e-05,2]
[394555814,1763703038950,-151.0,5.098e-05,2]
[394555815,1763703038965,-151.0,5.098e-05,2]
[394555816,1763703038981,-223.09337994,5.098e-05,2]
[394555817,1763703038996,-300.0,5.099e-05,2]
[394555818,1763703039012,-300.0,5.099e-05,2]
[394555819,1763703039028,-300.0,5.099e-05,2]
[394555820,1763703039042,-300.0,5.099e-05,2]
[394555821,1763703039056,-300.0,5.099e-05,2]
[394555822,1763703039072,-300.0,5.099e-05,2]
[394555823,1763703039088,-300.0,5.099e-05,2]
[394555824,1763703039104,-300.0,5.099e-05,2]
[394555825,1763703039120,-300.0,5.099e-05,2]
[394555826,1763703039134,-300.0,5.099e-05,2]
[394555827,1763703039149,-300.0,5.099e-05,2]
[394555828,1763703039164,-300.0,5.099e-05,2]
[394555829,1763703039180,-300.0,5.099e-05,2]
[394555830,1763703039195,-300.0,5.099e-05,2]
[394555831,1763703039212,-300.0,5.099e-05,2]
[394555832,1763703039227,-500.0,5.479e-05,2]
[394555833,1763703039241,-500.0,5.479e-05,2]
[394555834,1763703039256,-464.11604615,5.479e-05,2]
[394555835,1763703039271,-600.0,6.183e-05,2]
[394555836,1763703039287,-166.735375,6.361e-05,2]
[394555837,1763703039302,-720.0,6.802e-05,2]
[394555838,1763703039316,-461.70483716,6.876e-05,2]
[394555839,1763703039331,-297.00234919,7.019e-05,2]
[394555840,1763703039342,-864.0,7.482e-05,2]
[394555841,1763703039353,-1000.0,8.23e-05,2]
[394555842,1763703039363,-351.82318464,8.48e-05,2]
[394555843,1763703039373,-402.08363959,8.48e-05,2]
[394555844,1763703039383,-248.30211898,8.824e-05,2]
[394555845,1763703039393,-870.205489,8.9e-05,2]
[394555846,1763703039403,-259.542,8.926e-05,2]
[394555847,1763703039413,-354.72837234,8.926e-05,2]
[394555848,1763703039423,-372.83469411,8.926e-05,2]
[394555849,1763703039433,-350.98996858,8.926e-05,2]
[394555850,1763703039696,-401.13139266,8.926e-05,2]
[394555851,1763703039735,-342.30779229,9.019e-05,2]
[394555852,1763703039746,-500.0,9.023e-05,2]
[394555853,1763703039761,-1006.50457951,9.043e-05,2]
[394555854,1763703039770,-427.56164367,9.044e-05,2]
[394555855,1763703039779,-151.0,9.044e-05,2]
[394555856,1763703039789,-500.0,9.044e-05,2]
[394555857,1763703039798,-250.0,9.044e-05,2]
[394555858,1763703039807,-500.0,9.044e-05,2]
[394555859,1763703039816,-151.0,9.044e-05,2]
[394555860,1763703039826,-500.0,9.044e-05,2]
[394555861,1763703039836,-250.0,9.044e-05,2]
[394555862,1763703039845,-263.45154327,9.044e-05,2]
[394555863,1763703039854,-500.0,9.044e-05,2]
[394555864,1763703039864,-250.0,9.044e-05,2]